{"text_format":"1","workbook":"xlsx","n_sheets":4,"sheets":["Hoja6","DASBOARD","REPORTE","FUENTES"],"not_rendered":{"charts":5,"images":7,"macros":1,"external_links":0,"defined_names":2,"comments":0,"pivot_tables":6},"unopened":[],"bounds":{"document_bytes":16777216,"sheet_cells":100000,"rows_first":2000,"rows_last":500,"rows_between":2000,"halvings":0,"cell_chars":16384,"cell_head_chars":4096},"cells_cut":0,"cells_raw":0,"read":"whole","date_system":"1900"}

{"sheet":"Hoja6","index":0,"n_rows":24,"n_cols":17,"rows_kept":24,"cut":false,"hidden":false,"merged":[]}
[]
[]
[null,"Etiquetas de columna",null,"Etiquetas de fila","Suma de No. SEGUIMIENTOS REALIZADOS",null,"Etiquetas de fila","1 SEGUIMIENTO","2 SEGUIMIENTO ","3 SEGUIMIENTO ","4 SEGUIMIENTO ","5 SEGUIMIENTO ","6 SEGUIMIENTO","7 SEGUIMIENTO","8 SEGUIMIENTO","9 SEGUIMIENTO","10 SEGUIMIENTO"]
["Valores","POLITICA INFORMACIÓN Y COMUNICACIONES ","Total general","POLITICA INFORMACIÓN Y COMUNICACIONES ",4,null,"POLITICA INFORMACIÓN Y COMUNICACIONES ",0.89,0.89,0.93,0.96]
["Avance",0.96,0.96,"Total general",4,null,"Total general",0.89,0.89,0.93,0.96]
["En proceso",4.0000000000000036E-2,4.0000000000000036E-2]
["No. DE PLANES DE MEJORAMIENTO",{"$f":"+COUNT(REPORTE!D7:D42)","v":36}]
[]
[]
[]
[]
[]
[]
[]
[]
[0.2,1]
[0.3,1,null,null,"Etiquetas de fila","Cuenta de PRIMER SEGUIMIENTO",null,"Etiquetas de fila","Cuenta de PRIMER SEGUIMIENTO"]
[0.4,1,null,null,"POLITICA INFORMACIÓN Y COMUNICACIONES ",1,null,2022,1]
[0.5,1,null,null,"Vigencias 2020 - 2021 - 2022 - 2023",1,null,"Total general",1]
[0.6,1,null,null,"Total general",1]
[0.7,1]
[0.8,1,null,null,"OBSERVACIONES","Cuenta de PRIMER SEGUIMIENTO"]
[0.9,1,null,null,"Seguimiento corte 31 de Octubre de 2023. \n ",1]
[1,8,null,null,"Total general",1]

{"sheet":"DASBOARD","index":1,"n_rows":0,"n_cols":0,"rows_kept":0,"cut":false,"hidden":false,"merged":[]}

{"sheet":"REPORTE","index":2,"n_rows":43,"n_cols":19,"rows_kept":43,"cut":false,"hidden":false,"merged":[[4,1,4,18]]}
[]
[]
[]
[]
[]
[null,"PLANES DE MEJORAMIENTO","LINK DE ACCESO ONEDRIVE","No. SEGUIMIENTOS REALIZADOS","ESTADO DE AVANCE ACTUAL","PENDIENTE","PRIMER SEGUIMIENTO","SEGUNDO SEGUIMIENTO","TERCER SEGUIMIENTO","CUARTO SEGUIMIENTO","QUINTO SEGUIMIENTO","SEXTO SEGUIMIENTO","SEPTIMO SEGUIMIENTO","OCTAVO SEGUIMIENTO","NOVENO SEGUIMIENTO","DECIMO SEGUIMIENTO","VIGENCIA","OBSERVACIONES ","FECHA DE VENCIMIENTO "]
[null,"PM INCLUSIÓN",null,{"$f":"+COUNT(G7:P7)","v":7},{"$f":"+MAX($G$7:$P$7)","v":0.9},{"$f":"100%-E7","v":9.9999999999999978E-2},0.68,0.74,0.74,0.82,0.85,0.85,0.9,null,null,null,2016," En seguimiento se evidencia  mesa de\ntrabajo con Planeación Institucional, Equidad y diversidad donde se presentaron\nevidencias, están pendiente por culminar tareas de actualizaciones de\nprocedimientos","Vigencia 2020"]
[null,"PM RXD  VIGENCIA 2020 SGC",null,5,{"$f":"+MAX($G$8:$P$8)","v":0.99},{"$f":"100%-E8","v":1.0000000000000009E-2},0.95,0.98,0.98,0.98,0.99,null,null,null,null,null,2020,"En revisión de la única actividad pendiente se realiza el\nseguimiento con corte al 31 de Octubre de 2023 el cual se logra cerrar con la\noportuna respuesta de los procesos de 2 actividades, pendiente por cerrar 1\nactividad.","Vigencia 2020"]
[null,"PM RXD VIGENCIA 2021 SGC",null,5,{"$f":"+MAX($G$9:$P$9)","v":0.98},2.0000000000000018E-2,0.11,0.79,0.83,0.85,0.98,null,null,null,null,null,2021,"En seguimiento a este plan se evidencia veintisiete (27)\nde las cuales 25 tareas fueron cumplidas mostrando un avance significativo al\nanterior corte.","Vigencia 2021"]
[null,"PM RXD VIGENCIA 2021 SGA",null,5,{"$f":"+MAX($G$10:$P$10)","v":0.95},5.0000000000000044E-2,0.83,0.95,0.95,0.95,0.95,null,null,null,null,null,2021,"En seguimiento a esta revisión no presenta avance y\nfinalización de la única actividad pendiente a culminar, Act 5.","Vigencia 2021"]
[null,"PM RXD VIGENCIA 2021 SGSI",null,5,{"$f":"+MAX($G$11:$P$11)","v":1},0,0.09,0.88,0.88,0.88,1,null,null,null,null,null,2021,"En seguimiento a este plan se evidencia que tiene ocho\n(8) actividades, de las cuales se da cierre a todas las actividades con la\nactualización de la política del Sistema de Seguridad de la Información con la\nResolución 091 y 092 de 2023.","vigencia 2021"]
[null,"PM RXD VIGENCIA 2021 SG-SST",null,5,{"$f":"+MAX($G$12:$P$12)","v":0.92},7.999999999999996E-2,0.17,0.57999999999999996,0.67,0.75,0.92,null,null,null,null,null,2021,"En seguimiento a este plan se evidencia seis (6)\nactividades, de las cuales solo se encuentra la actividad del reglamento por\ncumplir","El plan de mejoramiento tiene un término de ejecución hasta el año  2022. "]
[null,"PM RXD VIGENCIA 2022 SGA",null,{"$f":"+COUNT(G13:P13)","v":2},{"$f":"+MAX($G$13:$P$13)","v":0.86},{"$f":"100%-E13","v":0.14000000000000001},0.61,0.86,null,null,null,null,null,null,null,null,2023,"El proceso presenta un avance significativo de 7 actividades a cumplir, de las\ncuales 4 presentan terminación y aun 3 que están en proceso encontrándose en\ntérminos hasta finalizar la vigencia en curso 2023.","Vigencia 2023"]
[null,"PM RXD VIGENCIA 2022 SGSI",null,{"$f":"+COUNT(G14:P14)","v":2},{"$f":"+MAX($G$14:$P$14)","v":0.81},{"$f":"100%-E14","v":0.18999999999999995},0,0.81,null,null,null,null,null,null,null,null,2023,"En segundo seguimiento a este plan se evidencia que\npresentan seis (6) actividades, de las cuales dos actividades están terminadas,\ntres abiertas  y una en\nproceso de transición en el II PA 2023. ","Vigencia 2023"]
[null,"PM RXD VIGENCIA 2022 SG-SST",null,{"$f":"+COUNT(G15:P15)","v":2},{"$f":"+MAX($G$15:$P$15)","v":0.75},{"$f":"100%-E15","v":0.25},0.3,0.75,null,null,null,null,null,null,null,null,2023,"En seguimiento a este plan se evidencia diez (10)\nactividades, de las cuales 4 están terminadas y 6 abiertas.","Vigencia 2023"]
[null,"PM RXD VIGENCIA 2022 SGC",null,{"$f":"+COUNT(G16:P16)","v":2},{"$f":"+MAX($G$16:$P$16)","v":0.69},{"$f":"100%-E16","v":0.31000000000000005},0.31,0.69,null,null,null,null,null,null,null,null,2023,"En seguimiento a este plan se evidencia siete (7) donde 4\ntareas presentan avance esperando a ser completadas en el II PA 2023 y 3 se\nhan completado.","Vigencia 2023"]
[null,"PM ACCESIBILIDAD-INFRAESTRUCTURA",null,{"$f":"+COUNT(G17:P17)","v":6},{"$f":"+MAX($G$17:$P$17)","v":0.24},{"$f":"100%-E17","v":0.76},0,0,0.24,0.24,0.24,0.24,null,null,null,null,2021,"En seguimiento a este plan de mejoramiento que tiene 7\nhallazgos con veinte (20) actividades de las cuales se encuentran dos (2)\ncerradas, cuatro (4) en avance y catorce (14) en términos.","Vigencia 2021"]
[null,"AC- PM RENOVACIÓN ACREDITACIÓN INGENIERÍA ELECTRÓNICA ","Septiembre",4,{"$f":"+MAX(G18:P18)","v":0.48},0.52,0.15,0.16,0.46,0.48,null,null,null,null,null,null,2022,"Dada  a la circular N° 002  emitida por la vicerrectoria académica se realizo seguimiento a corte 22 de septiembre\n.Las actividades del presente plan de mejoramiento se encuentran contempladas hasta el mes de agosto de la vigencia 2024, por tanto, las mismas se encuentran dentro de los términos de ejecución. ","El plan de mejoramiento tiene un término de ejecución, desde el 2022 hasta el 2024. "]
["MIGUE","AC- PM RENOVACIÓN ACREDITACIÓN ZOOTECNIA","Septiembre",3,0.47,0.53,0.19,0.25,0.47,null,null,null,null,null,null,null,2022,"Dada  a la circular N° 002  emitida por la vicerrectoria académica no se realiza seguimiento con este corte, sino hasta el mes de Agosto de la vigencia 2023","El plan de mejoramiento tiene un término de ejecución, desde el 2022 hasta el 2024. "]
["MIGUE","AC- PM RENOVACIÓN ACREDITACIÓN MÚSICA","Septiembre",{"$f":"+COUNT(G20:P20)","v":3},0.22,0.78,0.21,0.22,0.22,null,null,null,null,null,null,null,"2022-2024","Dada  a la circular N° 002  emitida por la vicerrectoria académica se realizo seguimiento a corte 22 de septiembre.\nLas actividades del presente plan de mejoramiento se encuentran contempladas hasta el diciembre del 2024, así las cosas, se encuentra dentro de los términos de ejecución. ","2024-12-31"]
["MIGUE","AC- PM DIAGNOSTICO ACADÉMICO  BIENESTAR UNIVERSITARIO","Septiembre",{"$f":"+COUNT(G21:P21)","v":3},0.33,0.66999999999999993,0.17,0.33,0.33,null,null,null,null,null,null,null,"2023-2024","Dada  a la circular N° 002  emitida por la vicerrectoria académica se realizo seguimiento a corte 22 de septiembre.\nLas actividades del presente plan de mejoramiento se encuentran contempladas hasta el marzo del 2024, así las cosas, se encuentra dentro de los términos de ejecución. ","2024-03-01"]
[null,"AC- PM DIAGNOSTICO ACADÉMICO INTERACCIÓN SOCIAL UNIVERSITARIA","Septiembre",{"$f":"+COUNT(G22:P22)","v":3},0.36,0.64,0.06,0.27,0.36,null,null,null,null,null,null,null,"2023-2024","Dada  a la circular N° 002  emitida por la vicerrectoria académica se realizo seguimiento a corte 22 de septiembre.\nLas actividades del presente plan de mejoramiento se encuentran contempladas hasta el mes de febrero de la vigencia 2024, por tanto, las mismas se encuentran dentro de los términos de ejecución.","Fecha de vecimiento 28/02/2024."]
[null,"PM INNOVACIÓN EDUCATIVA Y TRANSFORMACIÓN DIGITAL","Septiembre",{"$f":"+COUNT(G23:P23)","v":3},0.42,0.58000000000000007,0.09,0.42,0.42,null,null,null,null,null,null,null,2023,"Dada  a la circular N° 002  emitida por la vicerrectoria académica se realizo seguimiento a corte 22 de septiembre.\nLas actividades del presente plan de mejoramiento se encuentran contempladas hasta el mes de diciembre de la vigencia 2023, por tanto, las mismas se encuentran dentro de los términos de ejecución. . ","2023-12-01"]
[null,"_PM CONTRALORIA VIG 2019_",null,{"$f":"+COUNT(G24:P24)","v":4},0.90600000000000003,9.3999999999999972E-2,0.82199999999999995,0.90100000000000002,0.9,0.90600000000000003,null,null,null,null,null,null,2019,"Se mantienen abiertos 8 hallazgos que contemplan 29 actividades de las cuales cerraron 12 actividades","1905-07-11"]
[null,"_PM CONTRALORIA VIG 2020_",null,7,{"$f":"+MAX(G25:P25)","v":0.86750000000000005},0.13249999999999995,0.33,0.35,0.46,0.81879999999999997,0.83750000000000002,0.84379999999999999,0.86750000000000005,null,null,null,"2021-2022","A la fecha se encuentran  10 hallazgos abiertos.","El Plan de Mejoramiento tiene un termino de ejecución hasta agosto del 2022\n"]
[null,"_PM CONTRALORIA VIG 2021_",null,4,0.82779999999999998,0.17220000000000002,0.29380000000000001,0.5,0.59,0.82779999999999998,null,null,null,null,null,null,2023,"Actividades vencidas Cerradas: 64\nActividades vencidas Abiertas : 21\nActividades vencidas sin Avance: 5\nActividades en términos Cerradas: 0\nActividades en términos Abiertas: 1\nActividades en términos Sin avance: 0","El plan de mejoramiento tiene un término de ejecución, desde el 2022 hasta el 2023. "]
[null,"PM OMIS - SECCIONAL UBATÉ",null,10,0.93,6.9999999999999951E-2,0.33,0.71,0.88,0.88,0.88,0.88,0.92500000000000004,0.93,0.93,0.92500000000000004,2020,"En seguimiento a las actividades se evidencia que continua\npendiente una (1) actividad, de la cual no se puede realizar modificaciones\nestructurales ya que es patrimonio del Municipio, además de estructura bastante\nantigua de la cual sufre si se realiza cambio en estructura","Las actividades propuestos dentro del plan de mejoramiento, tienen como fecha límite de cumplimiento, el 31 diciembre de 2020"]
["PDTE OBSERVACION ","PM LEY DE PROTECCIÓN DE DATOS ",null,10,0.87,0.13,0.1,0.45,0.45,0.55000000000000004,0.64,0.66,0.69,0.73,0.78,0.87,2021,"Seguimiento corte 31 de Octubre de 2023. \nPresenta un avance en la actividad relacionada con el cambio de la resolución 050 de 2018 y 058 de 2019 evidenciando la RESOLUCIÓN No.  091 y 092 DEL 8 de agosto de 2023.\n ","vigencia 2021"]
[null,"POLITICA DE TALENTO HUMANO ",null,8,0.56000000000000005,0.43999999999999995,0,0.1,0.25,0.25,0.25,0.25,0.33,0.56000000000000005,null,null,2022,"Seguimiento corte 31 de Octubre de 2023. \n ","Vigencias 2020 - 2021 - 2022 - 2023"]
[null,"POLITICA DE GESTIÓN DEL CONOCIMIENTO",null,8,0.46,0.54,0.04,0.06,0.06,0.15,0.18,0.24,0.36,0.46,null,null,2022,"Seguimiento corte 31 de Octubre de 2023. \n ","Vigencias 2020 - 2021 - 2022 - 2023"]
[null,"POLITICA DE PLANEACIÓN",null,8,0.57999999999999996,0.42000000000000004,0.17,0.5,0.57999999999999996,0.57999999999999996,0.39,0.5,0.56000000000000005,0.56000000000000005,null,null,2022,"Seguimiento corte 31 de Octubre de 2023. \n ","Vigencias 2020 - 2021 - 2022 - 2023"]
[null,"POLITICA DE DEFENSA JURIDICA",null,8,0.4,0.6,0,0,0.25,0.32,0.32,0.33,0.35,0.4,null,null,2022,"Seguimiento corte 31 de Octubre de 2023. \n ","Vigencias 2020 - 2021 - 2022 - 2023"]
[null,"POLITICA DE CONTROL INTERNO",null,9,0.76,0.24,0.1,0.22,0.28999999999999998,0.53,0.64,0.71,0.64,0.67,0.76,null,2022,"Seguimiento corte 31 de Octubre de 2023. \n ","Vigencias 2020 - 2021 - 2022 - 2023"]
[null,"POLITICA DE FORTALECIMIENTO ORGANIZACIONAL ",null,9,0.38,{"$f":"100%-E34","v":0.62},0.19,0.24,0.33,0.33,0.38,0.38,0.38,0.38,0.38,null,2022,"Seguimiento corte 31 de Octubre de 2023. \n ","Vigencias 2020 - 2021 - 2022 - 2023"]
[null,"POLITICA DE GOBIERNO DIGITAL",null,9,0.54,0.45999999999999996,0.09,0.1,0.1,0.23,0.23,0.27,0.31,0.36,0.54,null,2022,"Seguimiento corte 31 de Octubre de 2023. \nSe realizó  actualización a las acciones de mejora de acuerdo con el correo recibio por la direccion de planeacion institucional fecha 01 de noviembre de 2023. ","Vigencias 2020 - 2021 - 2022 - 2023"]
[null,"POLITICA DE SEGURIDAD DIGITAL ",null,8,0.52,0.48,7.0000000000000007E-2,7.0000000000000007E-2,7.0000000000000007E-2,7.0000000000000007E-2,7.0000000000000007E-2,7.0000000000000007E-2,0.37,0.52,null,null,2022,"Seguimiento corte 31 de Octubre de 2023. \nSe realizó  actualización a las acciones de mejora de acuerdo con el correo recibio por la direccion de planeacion institucional fecha 01 de noviembre de 2023. ","Vigencias 2020 - 2021 - 2022 - 2023"]
[null,"POLITICA DE PARTICIPACIÓN CIUDADANA",null,9,0.67,0.32999999999999996,7.0000000000000007E-2,0.26,0.33,0.59,0.67,0.55000000000000004,0.55000000000000004,0.55000000000000004,0.57999999999999996,null,2022,"Seguimiento corte 31 de Octubre de 2023. \n ","Vigencias 2020 - 2021 - 2022 - 2023"]
[null,"POLITICA DE SEGUIMIENTO Y EVALUACIÓN",null,8,0.78,0.21999999999999997,0.11,0.33,0.33,0.44,0.67,0.67,0.67,0.78,null,null,2022,"Seguimiento corte 31 de Octubre de 2023. \n ","Vigencias 2020 - 2021 - 2022 - 2023"]
[null,"POLITICA DE TRANSPARENCIA",null,{"$f":"+COUNT(G39:P39)","v":8},{"$f":"+MAX(G39:P39)","v":0.67},0.32999999999999996,0.11,0.11,0.22,0.56000000000000005,0.33,0.53,0.67,0.67,null,null,2022,"Seguimiento corte 31 de Octubre de 2023. \n ","Vigencias 2020 - 2021 - 2022 - 2023"]
[null,"POLITICA DOCUMENTAL",null,{"$f":"+COUNT(G40:P40)","v":9},{"$f":"+MAX(G40:P40)","v":0.33},{"$f":"100%-E40","v":0.66999999999999993},0.17,0.17,0.17,0.33,0.33,0.13,0.23,0.23,0.3,null,2022,"Seguimiento corte 31 de Octubre de 2023. \n ","Vigencias 2020 - 2021 - 2022 - 2023"]
[null,"POLITICA INFORMACIÓN Y COMUNICACIONES ",null,4,{"$f":"+MAX(G41:P41)","v":0.96},{"$f":"100%-E41","v":4.0000000000000036E-2},0.89,0.89,0.93,0.96,null,null,null,null,null,null,2022,"Seguimiento corte 31 de Octubre de 2023. \n ","Vigencias 2020 - 2021 - 2022 - 2023"]
[null,"POLITICA DEL SISTEMA DE ATENCIÓN AL CIUDADANO",null,{"$f":"+COUNT(G42:P42)","v":10},{"$f":"+MAX(G42:P42)","v":0.61},{"$f":"100%-E42","v":0.39},0.06,0.19,0.22,0.28000000000000003,0.5,0.61,0.48,0.47,0.56000000000000005,0.56000000000000005,2022,"Seguimiento corte 31 de Octubre de 2023. \n ","Vigencias 2020 - 2021 - 2022 - 2023"]
[null,null,null,null,null,{"$f":"+(MAX(#REF!)+MAX(#REF!)+MAX(#REF!)+MAX(#REF!)+MAX(#REF!)+MAX(#REF!)+MAX(#REF!)+MAX(#REF!)+MAX(#REF!)+MAX(#REF!)+MAX(#REF!)+MAX(#REF!)+MAX(G27:K27)+MAX(#REF!)+MAX(#REF!)+MAX(#REF!)+MAX(#REF!)+MAX(#REF!)+MAX(#REF!)+MAX(#REF!)+MAX(#REF!)+MAX(#REF!)+MAX(#REF!)+MAX(#REF!)+MAX(#REF!)+MAX(#REF!)+MAX(#REF!))/COUNT(D7:D42)","v":{"$error":"#REF!"}},{"$f":"100%-F43","v":{"$error":"#REF!"}}]

{"sheet":"FUENTES","index":3,"n_rows":31,"n_cols":8,"rows_kept":31,"cut":false,"hidden":false,"merged":[[2,3,2,7]]}
[]
[]
[null,null,null,"FECHAS DE SEGUIMIENTO "]
[null,"PLANES DE MEJORAMIENTO","LINK DE ACCESO ONEDRIVE","PRIMER SEGUIMIENTO","SEGUNDO SEGUIMIENTO","TERCER SEGUIMIENTO","CUARTO SEGUIMIENTO","QUINTO SEGUIMIENTO"]
[null,"PM SISTEMA DE GESTIÓN AMBIENTAL",{"$f":"+COUNT(D5:H5)","v":0}]
[null,"PM REACREDITACIÓN SOCIALES",{"$f":"+COUNT(D6:H6)","v":0}]
[null,"PM CONTRALORIA",0]
[null,"PM CONDICIONES INCIALES",0]
[null,"PM BRECHAS TRANSPARENCIA",0]
[null,"PM FURAG - PLANEACIÓN",0]
[null,"PM FURAG - SISTEMAS Y TECNOLOGIA",0]
[null,"PM FURAG - CONTROL INTERNO",0]
[null,"PM FURAG - SERVICIO DE ATENCIÓN AL CIUDADANO",0]
[null,"PM FURAG - COMUNICACIONES",0]
[null,"PM FURAG - ARCHIVO Y CORRESPONDENCIA",0]
[null,"PM CONDICIONES INSTITUCIONALES",0]
[null,"PM OMIS - SECCIONAL UBATÉ",0]
[null,"PM OMIS - SECCIONAL GIRARDOT",0]
[null,"PM OMIS - EXTENSIÓN ZIPAQUIRA",0]
[null,"PM OMIS - EXTENSIÓN SOACHA",0]
[null,"PM OMIS -  EXTENSIÓN FACATATIVA",0]
[null,"PM OMIS - EXTENSIÓN CHÍA",0]
[null,"PM SABER PRO - ADMON EMPRESAS FGGA",0]
[null,"PM SABER PRO - ENFERMERIA GDTO",0]
[null,"PM SABER PRO -  MUSICA ZIPA",0]
[null,"PM SABER PRO - LIC CIENCIAS DEL DEPORTE FGGA",0]
[null,"PM SABER PRO - ZOOTECNIA FGGA",0]
[null,"PM SABER PRO - ING ELECTRONICA FGGA",0]
[null,"PM SABER PRO - LIC CIENCIAS SOCIALES FGGA",0]
[null,"PM LEY ANTISOBORNO",0]
[null,"CITGO DIGITAL",0]